bitfinex/quotes_SOLUSD_20260217
["timestamp","ask_amount","ask_price","bid_price","bid_amount"]
[1771359972367,18.52,85.007,84.991,0.65189439]
[1771359972561,12.41247843,85.019,84.991,0.65189439]
[1771359972758,18.52,85.018,85.001,0.65189439]
[1771359973392,11.76207671,85.019,85.001,0.65189439]
[1771359973890,12.41151008,85.026,85.001,0.65189439]
[1771359974191,19.17040172,85.025,85.001,0.65189439]
[1771359975987,11.76138502,85.024,85.001,0.65189439]
[1771359976288,12.40249574,85.024,85.001,0.65189439]
[1771359976489,18.54,85.023,85.001,0.65189439]
[1771359976786,0.64111072,85.019,84.984,0.66194056]
[1771359976966,0.64111072,84.999,84.966,0.66194056]
[1771359978465,11.7649827,84.998,84.967,11.76927513]
[1771359978665,0.64111072,84.997,84.967,0.66194056]
[1771359978888,0.64111072,84.989,84.967,0.66194056]
[1771359979084,0.64111072,84.987,84.957,11.77054651]
[1771359979291,0.64111072,84.987,84.958,0.66194056]
[1771359979490,0.64111072,84.987,84.961,0.66194056]
[1771359979873,18.54,84.988,84.961,0.66194056]
[1771359980586,18.54,84.988,84.944,15.02]
[1771359980587,17.82325549,84.988,84.971,0.66194056]
[1771359980773,18.54,84.995,84.981,0.66194056]
[1771359981397,0.64111072,85.004,84.981,0.66194056]
[1771359981689,11.76429067,85.003,84.981,0.66194056]
[1771359982490,0.64111072,84.999,84.962,11.76996775]
[1771359982785,0.64111072,84.997,84.963,0.66194056]
[1771359983285,0.64111072,84.995,84.963,0.66194056]
[1771359984674,0.64111072,84.989,84.963,0.66194056]
[1771359989095,0.64111072,84.989,84.964,0.66194056]
[1771359990702,11.76636701,84.988,84.964,0.66194056]
[1771359991500,0.64111072,84.988,84.964,0.66194056]
[1771359993603,0.64111072,84.986,84.964,0.66194056]
[1771359993903,0.64111072,85.019,84.971,0.66194056]
[1771359994213,0.64111072,85.019,84.981,0.66194056]
[1771359994214,2.39720555,85.01,84.981,0.66194056]
[1771359994712,3.03831627,85.01,84.981,0.66194056]
[1771359995195,0.64111072,85.009,84.981,0.66194056]
[1771359995596,0.64111072,85.007,84.981,0.66194056]
[1771359995998,0.64111072,84.999,84.966,0.66194056]
[1771359996304,0.64111072,84.997,84.966,0.66194056]
[1771359996502,0.64111072,84.989,84.966,0.66194056]
[1771359997107,0.64111072,84.997,84.966,0.66194056]
[1771359997291,0.64111072,84.989,84.966,0.66194056]
[1771359998210,0.64111072,84.987,84.966,0.66194056]
[1771359998388,0.64111072,84.987,84.957,0.66194056]
[1771359998903,2.39720555,84.99,84.958,0.66194056]
[1771359999104,17.90089525,84.989,84.96,2.39720555]
[1771359999285,29.40942173,85.007,84.971,0.66194056]
[1771359999286,11.76410763,85.005,84.971,0.66194056]
[1771360000392,12.40521835,85.005,84.972,11.76858259]
[1771360000605,12.40521835,85.005,84.973,0.66194056]
[1771360000804,0.64111072,85.004,84.973,0.66194056]
[1771360002416,11.76332196,85.01,84.982,11.76719775]
[1771360002705,11.76275022,85.015,84.983,0.66194056]
[1771360002909,0.64111072,85.018,84.991,0.66194056]
[1771360003309,11.76235341,85.017,84.991,0.66194056]
[1771360004925,12.3925009,85.017,84.991,0.66194056]
[1771360005313,0.63014749,85.016,84.991,0.66194056]
[1771360006807,11.76263012,85.015,84.991,0.66194056]
[1771360008019,32.73928138,85.02,84.993,0.67476464]
[1771360008422,0.63014749,85.019,84.993,0.67476464]
[1771360010528,11.76221506,85.018,84.993,0.67476464]
[1771360010706,0.63014749,85.017,84.993,0.67476464]
[1771360011327,0.63014749,85.017,84.981,12.44210086]
[1771360011824,0.63014749,85.009,84.981,12.44210086]
[1771360012139,0.63014749,85.009,84.982,0.67476464]
[1771360013124,0.63014749,85.009,84.983,12.42021598]
[1771360013515,0.63014749,85.009,84.984,0.65315669]
[1771360015634,0.63014749,85.009,84.986,0.65315669]
[1771360019034,11.7631445,85.012,84.988,0.65315669]
[1771360019220,30.3631445,85.012,84.988,0.65315669]
[1771360019740,0.65689002,85.011,84.988,0.65315669]
[1771360020440,0.65689002,85.011,84.97,6.8]
[1771360020441,2.39720555,85.01,84.972,0.65315669]
[1771360020643,2.39720555,85.01,84.914,47.10645976]
[1771360020644,0.65689002,84.989,84.951,0.65315669]
[1771360020824,18.6,84.996,84.971,0.65315669]
[1771360021144,11.7631445,85.012,84.983,0.65315669]
[1771360021145,18.6,85.006,84.983,0.65315669]
[1771360021442,18.6,85.01,84.983,0.65315669]
[1771360022636,11.76235788,85.017,84.991,0.65315669]
[1771360023720,11.76235788,85.017,84.99,2.39720555]
[1771360023721,0.65689002,85.027,84.993,0.65315669]
[1771360023916,0.65689002,85.041,85.011,0.65315669]
[1771360024119,18.6,85.04,85.021,0.65315669]
[1771360024919,0.65689002,85.039,85.011,0.65315669]
[1771360025716,0.65689002,85.037,85.011,0.65315669]
[1771360025921,18.6,85.041,85.013,0.65315669]
[1771360026117,18.6,85.041,85.021,0.65315669]
[1771360028644,30.35911346,85.041,85.021,0.65315669]
[1771360029034,3.05409557,85.06,85.031,0.65315669]
[1771360029355,19.25689002,85.058,85.031,0.65315669]
[1771360029647,29.3884548,85.068,85.031,0.65315669]
[1771360029648,0.65689002,85.061,85.031,0.65315669]
[1771360031244,12.41318912,85.061,85.033,0.65315669]
[1771360031554,11.7562991,85.061,85.033,0.65315669]
[1771360031746,11.75575121,85.065,85.033,0.65315669]
[1771360032330,30.35575121,85.065,85.033,0.65315669]
[1771360033033,0.1,85.07,85.051,0.65315669]
[1771360033453,0.1,85.07,85.053,0.65315669]
[1771360038739,0.75623003,85.07,85.046,0.66223256]
[1771360039058,0.75623003,85.07,85.042,0.66223256]
[1771360039557,0.1,85.07,85.042,0.66223256]
[1771360039862,0.1,85.07,85.051,0.66223256]
[1771360040737,0.1,85.07,85.052,11.75751305]
[1771360041247,0.75623003,85.07,85.047,11.75807533]
[1771360041442,0.75623003,85.07,85.048,0.66223256]
[1771360042056,0.1,85.07,85.048,0.66223256]
[1771360042260,0.1,85.07,85.051,0.66223256]
[1771360042758,0.65623003,85.069,85.041,0.66223256]
[1771360043164,0.1,85.07,85.041,0.66223256]
[1771360043342,0.1,85.07,85.051,0.66223256]
[1771360044461,0.65623003,85.069,85.044,0.66223256]
[1771360046065,0.65623003,85.069,85.045,0.66223256]
[1771360046254,0.1,85.07,85.045,0.66223256]
[1771360047765,0.1,85.07,85.014,0.66223256]
[1771360047766,0.65623003,85.059,85.014,0.66223256]
[1771360047964,0.65623003,85.039,85.0,2.39227955]
[1771360048161,18.62,85.038,85.01,2.39227955]
[1771360049876,18.62,85.038,85.012,11.76304521]
[1771360050075,0.65623003,85.037,85.012,11.76304521]
[1771360050475,0.65623003,85.037,85.012,12.29568482]
[1771360051378,0.65623003,85.037,85.012,11.76304521]
[1771360052356,0.65623003,85.037,85.013,0.53330759]
[1771360054265,0.65623003,85.037,85.014,11.76276848]
[1771360055377,0.65623003,85.037,85.013,0.53330759]
[1771360055562,0.65623003,85.037,85.01,14.1555995]
[1771360055761,0.65623003,85.037,85.01,11.76331995]
[1771360056683,0.65623003,85.035,85.006,12.30231763]
[1771360056886,0.65623003,85.035,85.011,0.53844214]
[1771360057062,18.64,85.037,85.011,0.53844214]
[1771360057777,0.65623003,85.036,85.011,0.53844214]
[1771360059969,0.65623003,85.036,85.013,0.5421403]
[1771360060668,0.65623003,85.064,85.031,0.54334481]
[1771360060976,0.65623003,85.064,85.02,2.39227955]
[1771360060977,0.65623003,85.064,85.041,0.54334481]
[1771360061389,11.75599261,85.063,85.041,0.54334481]
[1771360062288,0.65623003,85.062,85.041,0.54334481]
[1771360062691,2.39227955,85.05,85.011,0.69447262]
[1771360062868,2.39227955,85.04,85.011,0.69447262]
[1771360064289,30.37931043,85.039,85.011,12.45764701]
[1771360065493,11.759587,85.037,85.011,0.69447262]
[1771360065790,2.39227955,85.03,85.002,0.69514594]
[1771360066378,18.64,85.036,85.002,0.69514594]
[1771360068892,18.64,85.036,85.004,0.69514594]
[1771360068893,11.75986358,85.035,85.004,0.69514594]
[1771360070576,0.0239365,85.009,84.971,0.69514594]
[1771360070780,0.0239365,84.999,84.971,0.69514594]
[1771360071100,2.39227955,84.99,84.971,0.69514594]
[1771360072393,11.76622857,84.989,84.963,0.69514594]
[1771360072591,0.03458625,84.988,84.963,0.69514594]
[1771360074379,2.39227955,84.98,84.963,0.69514594]
[1771360074584,0.65252854,84.969,84.931,11.77426381]
[1771360074902,2.39227955,84.96,84.931,11.77426381]
[1771360076421,29.41557142,84.989,84.951,11.7714918]
[1771360076595,29.41557142,84.989,84.952,0.67927588]
[1771360077410,29.41557142,84.989,84.961,0.67927588]
[1771360077988,29.41557142,84.989,84.95,2.39227955]
[1771360077989,0.65252854,84.988,84.931,6.8]
[1771360078212,29.41557142,84.989,84.94,0.67927588]
[1771360078213,0.65252854,84.969,84.94,0.67927588]
[1771360078392,12.42155943,84.969,84.941,12.45215352]
[1771360078594,12.42155943,84.969,84.942,0.67927588]
[1771360080401,0.65252854,84.969,84.944,0.67927588]
[1771360080601,12.41819379,84.994,84.961,0.67927588]
[1771360081016,2.39227955,84.99,84.961,0.67927588]
[1771360082118,0.65252854,84.994,84.963,0.67927588]
[1771360082314,0.65252854,85.018,84.981,0.67927588]
[1771360082521,0.65252854,85.016,84.991,0.67927588]
[1771360082713,31.05408677,85.023,84.991,0.67927588]
[1771360082917,0.65252854,85.022,84.991,0.67927588]
[1771360083312,2.39227955,85.02,84.98,2.39227955]
[1771360083625,0.65252854,84.999,84.971,0.67927588]
[1771360084000,0.65252854,85.019,84.981,0.67927588]
[1771360084202,2.39227955,85.0,84.973,0.67927588]
[1771360084408,0.65252854,85.002,84.973,0.67927588]
[1771360084717,0.65252854,85.009,84.981,0.67927588]
[1771360086622,0.65252854,85.018,84.99,2.39227955]
[1771360086829,0.65252854,85.025,84.991,0.67927588]
[1771360087034,0.65252854,85.025,85.0,2.39227955]
[1771360087722,0.65252854,85.025,84.998,0.67927588]
[1771360088419,0.65252854,85.025,85.0,2.39227955]
[1771360089324,0.65252854,85.025,85.001,11.76456747]
[1771360089824,0.65252854,85.025,85.001,12.44384335]
[1771360091616,18.62,85.029,85.004,0.67927588]
[1771360092527,19.27252854,85.029,85.004,0.67927588]
[1771360093030,11.75865819,85.044,85.011,0.67927588]
[1771360093210,19.29252854,85.043,85.011,0.67927588]
[1771360093408,0.65252854,85.039,85.011,0.67927588]
[1771360093807,0.65252854,85.037,85.003,0.67927588]
[1771360094017,11.75944871,85.038,84.991,6.8]
[1771360094018,0.65252854,85.019,84.991,6.8]
[1771360094320,0.65252854,85.017,84.987,0.67927588]
[1771360095328,0.71312169,85.015,84.988,11.76632221]
[1771360096631,18.62,85.014,84.988,11.76632221]
[1771360096824,0.71312169,85.013,84.988,11.76632221]
[1771360097127,0.71312169,85.009,84.972,12.54370976]
[1771360097330,0.71312169,85.007,84.973,0.77512717]
[1771360099034,0.71312169,85.007,84.974,11.76830559]
[1771360099233,0.71312169,85.005,84.962,0.77512717]
[1771360099538,0.71312169,84.989,84.962,0.77512717]
[1771360101010,0.71312169,84.999,84.962,0.77512717]
[1771360101212,2.39718886,85.0,84.962,0.77512717]
[1771360101213,0.71312169,84.997,84.962,0.77512717]
[1771360101512,0.71312169,84.997,84.964,0.77512717]
[1771360102528,0.71312169,84.995,84.964,0.77512717]
[1771360103423,0.71312169,84.993,84.964,0.77512717]
[1771360103818,0.71312169,84.993,84.966,0.77512717]
[1771360104437,0.71312169,84.993,84.97,2.39718886]
[1771360104617,18.64,85.001,84.971,0.77512717]
[1771360105323,0.71312169,85.0,84.971,0.77512717]
[1771360105518,11.76484429,84.999,84.973,0.77512717]
[1771360105717,0.71312169,85.0,84.973,0.77512717]
[1771360106635,0.71312169,84.998,84.973,0.77512717]
[1771360107635,0.71312169,84.998,84.974,12.54343276]
[1771360107834,0.71312169,84.996,84.974,0.77512717]
[1771360112244,0.71312169,84.994,84.974,0.77512717]
[1771360113041,0.71312169,84.994,84.975,11.7681671]
[1771360113227,0.71312169,84.994,84.976,0.77512717]
[1771360115626,30.40475121,85.0,84.976,0.77512717]
[1771360115826,0.71312169,84.997,84.976,0.77512717]
[1771360116142,0.71312169,84.997,84.971,0.77512717]
[1771360116738,18.64,85.0,84.971,0.77512717]
[1771360116925,19.35312169,85.0,84.971,0.77512717]
[1771360117133,0.71312169,84.999,84.971,0.77512717]
[1771360118350,0.71312169,84.999,84.973,0.77512717]
[1771360118546,0.71312169,84.997,84.973,0.77512717]
[1771360121733,0.71312169,84.997,84.975,0.77512717]
[1771360122540,0.71312169,84.996,84.969,0.77512717]
[1771360124659,0.71312169,84.996,84.971,0.78006195]
[1771360125955,0.79201578,84.994,84.971,0.78006195]
[1771360128364,18.66,84.999,84.973,0.78006195]
[1771360128662,0.79201578,84.998,84.973,0.78006195]
[1771360129756,0.79201578,84.997,84.973,0.78006195]
[1771360131838,0.79201578,85.014,84.981,0.78006195]
[1771360132043,18.7,85.013,84.981,0.78006195]
[1771360132243,0.79201578,85.012,84.981,0.78006195]
[1771360132856,18.7,85.013,84.983,0.77415786]
[1771360132857,12.58535213,85.01,84.983,0.77415786]
[1771360133165,2.39718886,85.05,84.991,0.77415786]
[1771360133166,0.82190117,85.025,84.991,0.77415786]
[1771360133355,0.82190117,85.02,84.991,0.77415786]
[1771360134542,0.82190117,85.02,84.993,0.77415786]
[1771360136761,0.82190117,85.02,84.995,0.77415786]
[1771360140373,0.82190117,85.02,84.996,12.5394174]
[1771360141071,0.82190117,85.02,84.997,0.77415786]
[1771360141873,2.39718886,85.04,85.001,0.77415786]
[1771360142051,0.82190117,85.06,85.031,0.77415786]
[1771360142366,18.7,85.063,85.041,0.77415786]
[1771360142551,0.1,85.07,85.051,0.77415786]
[1771360143571,0.1,85.11,85.062,0.77415786]
[1771360143866,0.82190117,85.133,85.102,0.77415786]
[1771360144070,0.92190117,85.14,85.11,2.39718886]
[1771360144271,0.82190117,85.134,85.11,3.17134672]
[1771360144471,2.49718886,85.14,85.11,3.17134672]
[1771360144472,0.1,85.14,85.112,0.77415786]
[1771360145169,0.1,85.15,85.121,0.77415786]
[1771360145375,0.92190117,85.17,85.141,0.77415786]
[1771360145572,0.1,85.18,85.161,0.77415786]
[1771360145747,0.82190117,85.179,85.14,2.39718886]
[1771360145953,0.82190117,85.169,85.13,2.39718886]
[1771360146154,0.82190117,85.169,85.122,14.98]
[1771360146155,0.82190117,85.159,85.122,0.77415786]
[1771360146561,0.82190117,85.157,85.13,2.39718886]
[1771360147286,18.66,85.164,85.141,0.77415786]
[1771360147466,0.82190117,85.179,85.151,0.77415786]
[1771360148579,0.1,85.18,85.153,0.77415786]
[1771360148766,0.82190117,85.179,85.151,0.77415786]
[1771360148957,12.56188402,85.179,85.151,0.77415786]
[1771360149153,0.82190117,85.179,85.152,0.77415786]
[1771360149766,0.82190117,85.179,85.15,2.39718886]
[1771360149767,12.56188402,85.179,85.15,2.39718886]
[1771360149973,0.82190117,85.178,85.151,0.77415786]
[1771360150162,0.82190117,85.178,85.15,2.39718886]
[1771360151288,0.1,85.19,85.171,0.77415786]
[1771360151460,11.73584949,85.209,85.156,0.77415786]
[1771360151664,0.82190117,85.199,85.16,2.39718886]
[1771360151968,0.82190117,85.199,85.16,3.17134672]
[1771360152174,0.82190117,85.199,85.17,2.39718886]
[1771360152674,0.82190117,85.198,85.17,2.39718886]
[1771360153183,29.33962374,85.209,85.18,3.17134672]
[1771360153184,0.82190117,85.209,85.18,3.17134672]
[1771360153377,0.82190117,85.209,85.181,0.77415786]
[1771360153581,0.82190117,85.205,85.17,2.39718886]
[1771360154666,0.81147496,85.203,85.17,2.39718886]
[1771360155083,0.81147496,85.203,85.171,11.74108558]
[1771360155472,0.81147496,85.203,85.18,2.39718886]
[1771360155672,0.81147496,85.203,85.152,0.81858255]
[1771360155875,0.81147496,85.199,85.162,0.81858255]
[1771360156600,0.81147496,85.169,85.139,0.81858255]
[1771360156774,2.39718886,85.17,85.13,2.39718886]
[1771360156775,0.81147496,85.159,85.13,2.39718886]
[1771360157168,11.74010761,85.179,85.141,0.81858255]
[1771360157365,0.81147496,85.178,85.16,2.39718886]
[1771360157573,0.81147496,85.177,85.151,0.81858255]
[1771360157971,0.81147496,85.177,85.15,7.10201848]
[1771360159382,0.81147496,85.169,85.13,7.10201848]
[1771360159586,0.81147496,85.159,85.112,0.81858255]
[1771360159785,0.81147496,85.175,85.141,0.81858255]
[1771360159990,46.93768117,85.22,85.151,0.81858255]
[1771360159991,0.81147496,85.186,85.151,0.81858255]
[1771360160168,0.81147496,85.186,85.113,12.96]
[1771360160169,0.81147496,85.197,85.161,0.81858255]
[1771360160365,0.81147496,85.197,85.16,7.10201848]
[1771360160586,0.81147496,85.187,85.15,18.84599527]
[1771360160769,0.81147496,85.187,85.15,7.10201848]
[1771360161966,0.81147496,85.187,85.15,7.10186808]
[1771360162973,0.81147496,85.179,85.15,7.10186808]
[1771360163485,0.81147496,85.179,85.145,11.74467085]
[1771360163687,0.81147496,85.169,85.132,0.81858255]
[1771360163891,0.81147496,85.159,85.122,0.81858255]
[1771360164100,0.81147496,85.185,85.141,0.81858255]
[1771360164396,0.81147496,85.183,85.151,0.81858255]
[1771360165498,0.81147496,85.169,85.13,7.10186808]
[1771360165695,0.81147496,85.169,85.131,0.81858255]
[1771360167688,0.81147496,85.159,85.12,7.10186808]
[1771360167989,0.81147496,85.159,85.121,0.81858255]
[1771360168586,12.55297411,85.168,85.15,7.10186808]
[1771360168772,11.74149915,85.168,85.141,0.81858255]
[1771360172492,11.74149915,85.168,85.143,0.81858255]
[1771360173889,0.81147496,85.167,85.13,7.10186808]
[1771360174069,0.81147496,85.149,85.123,0.81858255]
[1771360174675,0.81147496,85.147,85.123,0.81858255]
[1771360174889,0.81147496,85.147,85.115,0.81858255]
[1771360175271,7.10186808,85.14,85.106,0.81858255]
[1771360175487,0.81147496,85.147,85.111,0.81858255]
[1771360175699,11.74425705,85.148,85.121,0.81858255]
[1771360176482,0.81147496,85.147,85.121,0.81858255]
[1771360178399,18.66,85.154,85.1,7.10186808]
[1771360178400,0.81147496,85.139,85.1,7.10186808]
[1771360178778,0.81147496,85.139,85.1,7.92045063]
[1771360179088,0.81147496,85.139,85.101,0.81858255]
[1771360179294,18.7,85.138,85.101,0.81858255]
[1771360179483,0.81147496,85.137,85.101,0.81858255]
[1771360180501,0.81147496,85.135,85.101,0.81858255]
[1771360180994,0.81147496,85.135,85.052,47.02997242]
[1771360180995,0.81147496,85.109,85.071,0.81858255]
[1771360181176,0.81147496,85.107,85.071,0.81858255]
[1771360181377,0.81147496,85.107,85.07,7.10186808]
[1771360181378,0.81147496,85.099,85.061,0.81858255]
[1771360182584,0.81147496,85.097,85.062,0.81858255]
[1771360183213,11.75052614,85.103,85.071,0.81858255]
[1771360183579,0.81147496,85.103,85.08,7.10186808]
[1771360183784,12.55973328,85.119,85.091,0.81858255]
[1771360184702,12.55973328,85.119,85.093,0.81253337]
[1771360187111,0.79953788,85.118,85.093,0.81253337]
[1771360187690,0.79953788,85.109,85.07,18.85689335]
[1771360188002,0.79953788,85.109,85.071,0.81253337]
[1771360189285,0.79953788,85.107,85.073,0.81253337]
[1771360189709,7.10186808,85.1,85.073,0.81253337]
[1771360190014,7.10186808,85.1,85.065,0.81253337]
[1771360190015,0.79953788,85.099,85.065,0.81253337]
[1771360190392,7.90140596,85.09,85.065,0.81253337]
[1771360190589,7.90140596,85.09,85.065,12.56815652]
[1771360191727,11.75240042,85.089,85.065,12.56815652]
[1771360193423,12.60915909,85.089,85.065,0.81253337]
[1771360194303,11.75267667,85.087,85.061,11.75621032]
[1771360194508,0.85675867,85.079,85.041,0.84178661]
[1771360194698,0.85675867,85.069,85.042,0.84178661]
[1771360195802,0.85675867,85.069,85.04,0.2]
[1771360195995,0.85675867,85.059,85.04,0.2]
[1771360196200,0.85675867,85.057,85.024,11.76131438]
[1771360196716,0.85675867,85.057,85.02,18.86372078]
[1771360197798,0.85675867,85.057,85.02,48.26856669]
[1771360198110,0.85675867,85.057,85.02,18.86372078]
[1771360198511,0.85675867,85.055,85.021,0.10885194]
[1771360199713,0.85675867,85.049,85.011,0.11038506]
[1771360199917,0.85675867,85.049,85.01,7.10186808]
[1771360200135,41.14936042,85.056,85.002,0.11038506]
[1771360200136,0.85675867,85.039,85.002,0.11038506]
[1771360200420,0.85675867,85.039,84.964,5.36086188]
[1771360200421,0.85675867,85.009,84.966,6.14660988]
[1771360200628,0.85675867,84.999,84.964,0.11038506]
[1771360201011,0.85675867,84.989,84.947,0.11189467]
[1771360201208,0.85675867,84.979,84.951,0.11189467]
[1771360202003,7.10186808,84.99,84.951,0.11189467]
[1771360202331,18.74,84.998,84.961,0.84178661]
[1771360202512,18.74,85.023,84.991,0.84178661]
[1771360202706,4.61729252,85.046,84.982,11.76719775]
[1771360202707,7.10186808,85.04,85.0,7.10186808]
[1771360202909,18.74,85.039,85.001,0.84178661]
[1771360204019,0.85675867,85.038,85.001,0.84178661]
[1771360204215,0.85675867,85.038,85.01,7.10186808]
[1771360204626,18.76,85.042,85.01,7.10186808]
[1771360204627,12.61634567,85.037,85.01,7.10186808]
[1771360204820,12.61634567,85.037,85.011,0.84178661]
[1771360205134,0.85675867,85.036,85.003,0.84178661]
[1771360205626,11.759587,85.037,84.984,14.94]
[1771360205627,0.85675867,85.029,84.99,7.10186808]
[1771360205811,0.85675867,85.009,84.97,18.87072767]
[1771360206011,0.85675867,84.999,84.96,7.94365469]
[1771360206215,0.85675867,84.989,84.952,12.61313984]
[1771360206417,0.85675867,84.989,84.96,7.10186808]
[1771360206727,12.62306769,84.989,84.96,7.10186808]
[1771360207312,0.85675867,84.988,84.96,7.10186808]
[1771360207513,0.85675867,84.988,84.961,11.77010628]
[1771360207727,0.85675867,85.008,84.971,0.84178661]
[1771360207915,0.85675867,84.999,84.962,0.84178661]
[1771360208119,0.85675867,84.999,84.97,7.94365469]
[1771360208320,0.85675867,84.999,84.971,0.84178661]
[1771360209333,0.85675867,84.998,84.962,0.84178661]
[1771360209534,0.85675867,84.989,84.954,0.84178661]
[1771360210036,0.85675867,84.989,84.956,11.77075828]
[1771360210226,0.85675867,84.979,84.945,0.84178661]
[1771360210726,0.85675867,84.979,84.947,11.77194489]
[1771360210918,0.85675867,84.979,84.948,0.84178661]
[1771360211233,41.17700118,84.999,84.947,11.77194489]
[1771360211234,0.85675867,84.989,84.96,7.10186808]
[1771360211416,0.85675867,84.989,84.961,11.77010628]
[1771360212219,0.85675867,85.004,84.971,0.84178661]
[1771360212739,0.89265363,85.045,84.99,7.10186808]
[1771360212938,0.89265363,85.045,85.02,7.10186808]
[1771360213535,0.89265363,85.039,85.01,7.10186808]
[1771360213834,0.89265363,85.039,85.0,7.10186808]
[1771360214720,0.89265363,85.039,85.01,7.10186808]
[1771360215018,0.89265363,85.039,85.0,7.10186808]
[1771360215621,0.89265363,85.037,85.001,11.76456747]
[1771360215820,0.89265363,85.037,85.01,7.10186808]
[1771360217342,12.65237892,85.036,85.01,7.10186808]
[1771360217542,11.75972529,85.036,85.01,7.10186808]
[1771360217735,0.89265363,85.035,85.01,7.10186808]
[1771360217934,0.89265363,85.029,84.99,7.10186808]
[1771360218239,0.89265363,85.019,84.98,7.10186808]
[1771360218847,0.89265363,85.009,84.98,7.10186808]
[1771360219036,0.89265363,85.009,84.971,11.76872109]
[1771360220540,0.89265363,85.007,84.98,7.10186808]
[1771360221444,0.89265363,85.016,84.99,7.10186808]
[1771360221946,0.89265363,85.016,84.98,7.12991137]
[1771360222247,0.89265363,85.009,84.98,7.12991137]
[1771360223047,0.89265363,85.007,84.97,7.12991137]
[1771360223228,0.89265363,84.999,84.97,7.12991137]
[1771360223430,0.89265363,84.999,84.899,47.11438805]
[1771360223748,0.89265363,84.989,84.95,7.12991137]
[1771360224449,0.89265363,84.989,84.96,7.12991137]
[1771360224824,0.89265363,84.989,84.95,7.12991137]
[1771360225148,0.89265363,84.979,84.947,11.77194981]
[1771360225454,0.89265363,84.979,84.95,7.12991137]
[1771360226124,0.89265363,84.979,84.951,0.02198043]
[1771360227145,0.89265363,84.979,84.951,11.79347223]
[1771360227347,0.89265363,84.989,84.96,7.12991137]
[1771360227548,0.89265363,84.989,84.97,7.12991137]
[1771360227734,12.65796613,84.996,84.97,7.12991137]
[1771360230555,0.89265363,84.996,84.971,11.76872109]
[1771360231355,0.89265363,85.006,84.98,7.12991137]
[1771360232144,12.65557901,85.013,84.981,0.03377844]
[1771360232861,0.89265363,85.012,85.0,7.12991137]
[1771360233040,0.89265363,85.028,85.0,7.12991137]
[1771360233545,0.89265363,85.026,85.0,7.12991137]
[1771360235063,7.12991137,85.03,84.995,0.03566561]
[1771360235064,0.89265363,85.024,84.995,0.03566561]
[1771360237340,0.89265363,85.024,85.0,7.12991137]
[1771360237845,0.89265363,85.024,84.995,0.03566561]
[1771360238548,0.89265363,85.019,84.99,7.12991137]
[1771360238771,0.89265363,85.019,84.977,14.96]
[1771360238946,0.89265363,85.009,84.972,0.04651855]
[1771360239147,0.89265363,85.009,84.972,11.76850072]
[1771360239443,12.65757446,84.999,84.972,11.76850072]
[1771360239645,0.89265363,84.998,84.972,11.76850072]
[1771360240465,0.89265363,84.998,84.97,7.12991137]
[1771360241770,30.52512112,84.997,84.97,7.12991137]
[1771360241964,0.89265363,84.996,84.97,7.12991137]
[1771360242760,18.76,84.995,84.97,7.12991137]
[1771360243154,0.89265363,84.994,84.97,7.12991137]
[1771360244278,0.89265363,84.994,84.95,29.42873829]
[1771360244279,0.89265363,84.989,84.95,7.12991137]
[1771360244456,0.89674847,84.979,84.95,7.12991137]
[1771360244775,0.89674847,84.977,84.944,11.77242175]
[1771360245956,0.89674847,84.977,84.95,7.12991137]
[1771360246173,0.89674847,84.976,84.951,11.7714918]
[1771360246578,18.76,84.987,84.961,0.06151105]
[1771360246961,18.76,84.987,84.97,7.12991137]
[1771360247365,18.76,84.988,84.97,7.12991137]
[1771360247856,18.76,84.988,84.961,0.06151105]
[1771360248258,0.89674847,84.985,84.96,7.12991137]
[1771360248577,0.89674847,84.985,84.95,7.12991137]
[1771360248754,41.1832537,84.986,84.942,11.77264993]
[1771360248755,0.89674847,84.979,84.942,11.77264993]
[1771360249175,0.89674847,84.979,84.951,0.06463615]
[1771360249756,0.89674847,84.979,84.96,7.12991137]
[1771360250165,0.89674847,84.998,84.971,11.76872109]
[1771360250478,18.76,84.997,84.98,7.12991137]
[1771360250679,0.89674847,84.996,84.97,7.12991137]
[1771360250879,0.89674847,84.996,84.971,11.76872109]
[1771360251080,0.89674847,84.996,84.97,7.12991137]
[1771360251259,0.89674847,84.996,84.96,7.12991137]
[1771360252062,0.89674847,84.996,84.961,11.77010628]
[1771360252979,0.89674847,84.994,84.961,11.77010628]
[1771360253566,0.89674847,84.994,84.96,7.12991137]
[1771360254069,0.89265363,84.989,84.957,11.77064428]
[1771360254372,0.89265363,84.987,84.957,11.77064428]
[1771360254978,0.89265363,84.985,84.95,7.12991137]
[1771360255286,0.89265363,84.979,84.95,7.12991137]
[1771360255663,0.89265363,84.979,84.951,11.7714918]
[1771360256472,0.89265363,84.979,84.947,11.77200227]
[1771360257081,0.89265363,84.969,84.93,7.32991137]
[1771360257287,0.89265363,84.969,84.931,0.07781874]
[1771360258170,0.89265363,84.967,84.94,7.12991137]
[1771360258486,0.89265363,84.967,84.941,0.0805751]
[1771360260484,18.78,84.973,84.951,0.0819326]
[1771360260682,0.89265363,84.972,84.94,7.12991137]
[1771360260871,0.89265363,84.969,84.935,11.77369757]